bitfinex-derivatives/quotes_ETHF0:USTF0_20260118
["timestamp","ask_amount","ask_price","bid_price","bid_amount"]
[1768769897431,0.92524705,3342.2,3341.1,1.88390414]
[1768769897627,0.14963,3342.6,3341.1,1.88390414]
[1768769897840,0.92502728,3342.5,3341.1,1.88390414]
[1768769898142,0.92502728,3342.4,3341.1,1.88390414]
[1768769898440,0.92502728,3342.3,3341.1,1.88390414]
[1768769898640,0.92502728,3342.2,3341.1,1.88390414]
[1768769898840,0.14963,3342.6,3341.1,1.88390414]
[1768769899043,0.92486185,3342.5,3341.1,1.88390414]
[1768769899244,0.92486185,3342.4,3341.1,1.88390414]
[1768769899437,0.92486185,3342.3,3341.1,1.88390414]
[1768769899640,0.92486185,3342.2,3341.1,1.88390414]
[1768769899839,0.14963,3342.6,3341.1,1.88390414]
[1768769900039,0.92473538,3342.5,3341.1,1.88390414]
[1768769900239,0.92473538,3342.4,3341.1,1.88390414]
[1768769900538,0.92473538,3342.3,3341.1,1.88390414]
[1768769900737,0.92473538,3342.2,3341.1,1.88390414]
[1768769900943,0.14963,3342.6,3341.1,1.88390414]
[1768769901242,0.92480965,3342.5,3341.1,1.88390414]
[1768769901441,0.92480965,3342.4,3341.1,1.88390414]
[1768769901641,0.92480965,3342.3,3341.1,1.88390414]
[1768769901942,0.92480965,3342.2,3341.1,1.88390414]
[1768769902243,0.14964,3342.5,3341.1,1.88390414]
[1768769902436,0.92468978,3342.4,3340.7,0.95604902]
[1768769902644,0.92468978,3342.3,3340.8,1.82174214]
[1768769902843,0.92468978,3342.2,3340.8,1.82174214]
[1768769903044,2.01394278,3342.5,3340.8,1.82174214]
[1768769903338,0.92466595,3342.4,3340.8,1.82174214]
[1768769903535,0.92466595,3342.3,3340.8,1.82174214]
[1768769903751,0.92466595,3342.2,3340.8,1.82174214]
[1768769903944,2.01394278,3342.5,3340.8,1.82174214]
[1768769904149,0.92467228,3342.4,3340.8,1.82174214]
[1768769904345,0.92467228,3342.3,3340.8,1.82174214]
[1768769904545,0.92467228,3342.2,3340.8,1.82174214]
[1768769904749,0.92463887,3342.1,3340.8,1.82174214]
[1768769905046,2.01394278,3342.5,3340.8,1.82174214]
[1768769905355,1.0742776,3342.4,3340.8,1.82174214]
[1768769905548,0.9246376,3342.3,3340.8,1.82174214]
[1768769905748,0.9246376,3342.2,3340.8,1.82174214]
[1768769905949,0.9246376,3342.1,3340.8,1.82174214]
[1768769906154,0.14964,3342.4,3340.8,1.82174214]
[1768769906454,0.92465906,3342.3,3340.8,1.82174214]
[1768769906754,0.92465906,3342.2,3340.8,1.82174214]
[1768769907051,0.92465906,3342.1,3340.8,1.82174214]
[1768769907253,0.14964,3342.4,3340.8,1.82174214]
[1768769907554,0.92293664,3342.3,3340.8,1.82174214]
[1768769907755,0.92293664,3342.2,3340.8,1.82174214]
[1768769908054,0.92293664,3342.1,3340.8,1.82174214]
[1768769908255,0.14964,3342.4,3340.8,1.82174214]
[1768769908456,0.92293271,3342.3,3340.8,1.82174214]
[1768769908661,0.92293271,3342.2,3340.8,1.82174214]
[1768769908852,0.92293271,3342.1,3340.8,1.82174214]
[1768769909050,0.14964,3342.4,3340.8,1.82174214]
[1768769909250,0.92294848,3342.3,3340.8,1.82174214]
[1768769909452,0.92294848,3342.2,3340.8,1.82174214]
[1768769909654,0.92294848,3342.1,3340.8,1.82174214]
[1768769909954,0.14964,3342.4,3340.8,1.82174214]
[1768769910256,0.92294721,3342.3,3340.8,1.82174214]
[1768769910447,0.92294721,3342.2,3340.8,1.82174214]
[1768769910648,0.92294721,3342.1,3340.8,1.82174214]
[1768769910952,0.14964,3342.4,3340.8,1.82174214]
[1768769911158,0.92295749,3342.3,3340.8,1.82174214]
[1768769911359,0.92295749,3342.2,3340.8,1.82174214]
[1768769911657,0.92295749,3342.1,3340.8,1.82174214]
[1768769911855,0.14964,3342.4,3340.8,1.82174214]
[1768769912055,0.92296201,3342.3,3340.8,1.82174214]
[1768769912250,0.92296201,3342.2,3340.8,1.82174214]
[1768769912453,0.92296201,3342.1,3340.8,1.82174214]
[1768769912759,0.14964,3342.4,3340.8,1.82174214]
[1768769912959,0.92297198,3342.3,3340.8,1.82174214]
[1768769913158,0.92297198,3342.2,3340.8,1.82174214]
[1768769913359,0.92297198,3342.1,3340.8,1.82174214]
[1768769913562,0.14964,3342.4,3340.8,1.82174214]
[1768769913762,0.92298553,3342.3,3340.8,1.82174214]
[1768769913960,0.92298553,3342.2,3340.8,1.82174214]
[1768769914261,0.92298553,3342.1,3340.8,1.82174214]
[1768769914461,0.14964,3342.4,3340.8,1.82174214]
[1768769914660,0.92302687,3342.3,3340.8,1.82174214]
[1768769914862,0.92302687,3342.2,3340.8,1.82174214]
[1768769915059,0.92302687,3342.1,3340.8,1.82174214]
[1768769915266,0.14964,3342.4,3340.8,1.82174214]
[1768769915464,0.92304206,3342.3,3340.8,1.82174214]
[1768769915762,0.92304206,3342.2,3340.8,1.82174214]
[1768769916057,0.14964,3342.4,3340.8,1.82174214]
[1768769916263,0.92305027,3342.3,3340.8,1.82174214]
[1768769916455,0.92305027,3342.2,3340.8,1.82174214]
[1768769916656,0.14964,3342.4,3340.8,1.82174214]
[1768769916863,0.92306177,3342.3,3340.8,1.82174214]
[1768769917064,0.92306177,3342.2,3340.8,1.82174214]
[1768769917264,0.14964,3342.4,3340.8,1.82174214]
[1768769917468,0.92308722,3342.3,3340.8,1.82174214]
[1768769917766,0.92308722,3342.2,3340.8,1.82174214]
[1768769917961,0.14964,3342.4,3340.8,1.82174214]
[1768769918164,0.92308859,3342.3,3340.8,1.82174214]
[1768769918461,0.92308859,3342.2,3340.8,1.82174214]
[1768769918663,0.14964,3342.4,3340.8,1.82174214]
[1768769918963,0.92312042,3342.3,3340.8,1.82174214]
[1768769919165,0.92312042,3342.2,3340.8,1.82174214]
[1768769919367,0.14964,3342.4,3340.8,1.82174214]
[1768769919565,0.92315828,3342.3,3340.8,1.82174214]
[1768769919865,0.92315828,3342.2,3340.8,1.82174214]
[1768769920066,0.14964,3342.4,3340.8,1.82174214]
[1768769920367,0.92320559,3342.3,3340.8,1.82174214]
[1768769920568,0.92320559,3342.2,3340.8,1.82174214]
[1768769920763,0.14964,3342.4,3340.8,1.82174214]
[1768769920955,0.92320559,3342.3,3340.8,1.82174214]
[1768769921159,0.92320559,3342.2,3340.8,1.82174214]
[1768769921359,0.14964,3342.4,3340.8,1.82174214]
[1768769921568,0.92326221,3342.3,3340.8,1.82174214]
[1768769921770,0.92326221,3342.2,3340.8,1.82174214]
[1768769922067,0.14964,3342.4,3340.8,1.82174214]
[1768769922267,0.9232632,3342.3,3340.8,1.82174214]
[1768769922469,0.9232632,3342.2,3340.8,1.82174214]
[1768769922667,0.14964,3342.4,3340.8,1.82174214]
[1768769922668,0.9232632,3342.1,3340.8,1.82174214]
[1768769922970,0.14964,3342.4,3340.8,1.82174214]
[1768769923164,0.923331,3342.3,3340.8,1.82174214]
[1768769923359,0.923331,3342.2,3340.8,1.82174214]
[1768769923560,0.923331,3342.1,3340.8,1.82174214]
[1768769923759,0.14964,3342.4,3340.8,1.82174214]
[1768769923961,0.92355395,3342.3,3340.8,1.82174214]
[1768769924261,0.92355395,3342.2,3340.8,1.82174214]
[1768769924568,0.92355395,3342.1,3340.8,1.82174214]
[1768769924771,0.14964,3342.4,3340.8,1.82174214]
[1768769924974,0.92366494,3342.3,3340.8,1.82174214]
[1768769925161,0.92366494,3342.2,3340.8,1.82174214]
[1768769925471,0.92366494,3342.1,3340.8,1.82174214]
[1768769925670,0.14964,3342.4,3340.8,1.82174214]
[1768769925971,0.92380107,3342.3,3340.8,1.82174214]
[1768769926170,0.92380107,3342.2,3340.8,1.82174214]
[1768769926371,0.92380107,3342.1,3340.8,1.82174214]
[1768769926572,0.14964,3342.4,3340.8,1.82174214]
[1768769926772,0.92401363,3342.3,3340.8,1.82174214]
[1768769926973,0.92401363,3342.2,3340.8,1.82174214]
[1768769927169,0.92401363,3342.1,3340.8,1.82174214]
[1768769927370,0.14964,3342.4,3340.8,1.82174214]
[1768769927568,0.92401296,3342.3,3340.8,1.82174214]
[1768769927768,0.92401296,3342.2,3340.8,1.82174214]
[1768769927971,0.92401296,3342.1,3340.8,1.82174214]
[1768769928163,0.14964,3342.4,3340.8,1.82174214]
[1768769928364,0.92402765,3342.3,3340.8,1.82174214]
[1768769928659,0.92402765,3342.2,3340.8,1.82174214]
[1768769928859,0.92402765,3342.1,3340.8,1.82174214]
[1768769929066,0.14964,3342.4,3340.8,1.82174214]
[1768769929267,0.92404278,3342.3,3340.8,1.82174214]
[1768769929558,0.92404278,3342.2,3340.8,1.82174214]
[1768769929764,0.92404278,3342.1,3340.8,1.82174214]
[1768769929970,0.14964,3342.4,3340.8,1.82174214]
[1768769930167,0.92404273,3342.3,3340.8,1.82174214]
[1768769930368,0.92404273,3342.2,3340.8,1.82174214]
[1768769930570,0.92404273,3342.1,3340.8,1.82174214]
[1768769930766,0.14964,3342.4,3340.8,1.82174214]
[1768769930963,0.92406176,3342.3,3340.8,1.82174214]
[1768769931168,0.92406176,3342.2,3340.8,1.82174214]
[1768769931369,0.92406176,3342.1,3340.8,1.82174214]
[1768769931568,0.14964,3342.4,3340.8,1.82174214]
[1768769931776,0.92408427,3342.3,3340.8,1.82174214]
[1768769931969,0.92408427,3342.2,3340.8,1.82174214]
[1768769932269,0.92408427,3342.1,3340.8,1.82174214]
[1768769932469,0.14964,3342.4,3340.8,1.82174214]
[1768769932675,0.92410796,3342.3,3340.8,1.82174214]
[1768769932874,0.92410796,3342.2,3340.8,1.82174214]
[1768769933079,0.92410796,3342.1,3340.8,1.82174214]
[1768769933375,0.14964,3342.4,3340.8,1.82174214]
[1768769933678,0.92410724,3342.3,3340.8,1.82174214]
[1768769933873,0.92410724,3342.2,3340.8,1.82174214]
[1768769934072,0.92410724,3342.1,3340.8,1.82174214]
[1768769934273,0.14964,3342.4,3340.8,1.82174214]
[1768769934477,0.92410665,3342.3,3340.8,1.82174214]
[1768769934678,0.92410665,3342.2,3340.8,1.82174214]
[1768769934876,0.92410665,3342.1,3340.8,1.82174214]
[1768769935076,0.14964,3342.4,3340.8,1.82174214]
[1768769935277,0.92410946,3342.3,3340.8,1.82174214]
[1768769935477,0.92410946,3342.2,3340.8,1.82174214]
[1768769935679,0.92410946,3342.1,3340.8,1.82174214]
[1768769935879,0.14964,3342.4,3340.8,1.82174214]
[1768769936178,0.92411427,3342.3,3340.8,1.82174214]
[1768769936368,0.92411427,3342.2,3340.8,1.82174214]
[1768769936566,0.92411427,3342.1,3340.8,1.82174214]
[1768769936777,0.14964,3342.4,3340.8,1.82174214]
[1768769936969,0.92411822,3342.3,3340.8,1.82174214]
[1768769937164,0.92411822,3342.2,3340.8,1.82174214]
[1768769937376,0.92411822,3342.1,3340.8,1.82174214]
[1768769937581,0.14964,3342.4,3340.8,1.82174214]
[1768769937769,0.92325186,3342.3,3340.8,1.82174214]
[1768769937970,0.92325186,3342.2,3340.8,1.82174214]
[1768769938183,0.92325186,3342.1,3340.8,1.82174214]
[1768769938376,0.14964,3342.4,3340.8,1.82174214]
[1768769938577,0.92326033,3342.3,3340.8,1.82174214]
[1768769938779,0.92326033,3342.2,3340.8,1.82174214]
[1768769938980,0.92326033,3342.1,3340.8,1.82174214]
[1768769939280,0.14964,3342.4,3340.8,1.82174214]
[1768769939481,0.92326865,3342.3,3340.8,1.82174214]
[1768769939679,0.92326865,3342.2,3340.8,1.82174214]
[1768769939880,0.92326865,3342.1,3340.8,1.82174214]
[1768769940081,0.14964,3342.4,3340.8,1.82174214]
[1768769940283,0.92327743,3342.3,3340.8,1.82174214]
[1768769940486,0.92327743,3342.2,3340.8,1.82174214]
[1768769940786,0.92327743,3342.1,3340.8,1.82174214]
[1768769940976,0.14964,3342.4,3340.8,1.82174214]
[1768769941176,0.92327636,3342.3,3340.8,1.82174214]
[1768769941476,0.92327636,3342.2,3340.8,1.82174214]
[1768769941672,0.92327636,3342.1,3340.8,1.82174214]
[1768769941877,0.14964,3342.4,3340.8,1.82174214]
[1768769942174,0.92328599,3342.3,3340.8,1.82174214]
[1768769942378,0.92328599,3342.2,3340.8,1.82174214]
[1768769942579,0.92328599,3342.1,3340.8,1.82174214]
[1768769942780,0.14964,3342.4,3340.8,1.82174214]
[1768769943087,0.92330123,3342.3,3340.8,1.82174214]
[1768769943289,0.92330123,3342.2,3340.8,1.82174214]
[1768769943491,0.92330123,3342.1,3340.8,1.82174214]
[1768769943788,0.14964,3342.4,3340.8,1.82174214]
[1768769943988,0.92331073,3342.3,3340.8,1.82174214]
[1768769944189,0.92331073,3342.2,3340.8,1.82174214]
[1768769944386,0.92331073,3342.1,3340.8,1.82174214]
[1768769944587,1.97764872,3342.4,3340.8,1.82174214]
[1768769944893,1.87925812,3342.3,3341.0,0.95592162]
[1768769945082,0.9233365,3342.2,3341.0,0.95592162]
[1768769945282,0.9233365,3342.1,3341.0,0.95592162]
[1768769945489,0.95592162,3342.3,3341.0,0.95592162]
[1768769945692,0.92338695,3342.2,3341.0,0.95592162]
[1768769945891,0.92338695,3342.1,3341.0,0.95592162]
[1768769946191,0.95592162,3342.3,3341.0,0.95592162]
[1768769946388,0.9233858,3342.2,3341.0,0.95592162]
[1768769946586,0.9233858,3342.1,3341.0,0.95592162]
[1768769946786,0.95592162,3342.3,3341.0,0.95592162]
[1768769946992,0.92338592,3342.2,3341.0,0.95592162]
[1768769947292,0.92338592,3342.1,3341.0,0.95592162]
[1768769947481,0.95592162,3342.3,3341.0,0.95592162]
[1768769947680,0.92338486,3342.2,3341.0,0.95592162]
[1768769947989,0.92338486,3342.1,3341.0,0.95592162]
[1768769948192,0.95592162,3342.3,3341.0,0.95592162]
[1768769948492,0.92338415,3342.2,3341.0,0.95592162]
[1768769948685,0.92338415,3342.1,3341.0,0.95592162]
[1768769948890,0.95592162,3342.3,3341.0,0.95592162]
[1768769949090,0.92338389,3342.2,3341.0,0.95592162]
[1768769949288,0.92338389,3342.1,3341.0,0.95592162]
[1768769949591,0.95592162,3342.3,3341.0,0.95592162]
[1768769949787,0.92338315,3342.2,3341.0,0.95592162]
[1768769949986,0.95592162,3342.3,3341.0,0.95592162]
[1768769950182,0.92341295,3342.2,3341.0,0.95592162]
[1768769960603,0.92341295,3342.2,3340.8,1.82174214]
[1768769960896,0.92341295,3342.2,3340.9,0.95592162]
[1768769963901,0.92341295,3342.2,3341.4,0.95592162]
[1768769964203,2.71912502,3342.7,3341.4,0.95592162]
[1768769964403,0.92316244,3342.6,3341.4,0.95592162]
[1768769964596,0.92316244,3342.5,3341.4,0.95592162]
[1768769964806,0.92316244,3342.4,3341.4,0.95592162]
[1768769964998,0.92316244,3342.3,3341.4,0.95592162]
[1768769965201,0.92316244,3342.2,3341.4,0.95592162]
[1768769965405,1.10555162,3342.7,3341.4,0.95592162]
[1768769965705,0.92315527,3342.6,3341.4,0.95592162]
[1768769965906,0.92315527,3342.5,3341.4,0.95592162]
[1768769966207,0.92315527,3342.4,3341.4,0.95592162]
[1768769966505,0.92315527,3342.3,3341.4,0.95592162]
[1768769966698,0.92315527,3342.2,3341.4,0.95592162]
[1768769966998,1.10555162,3342.7,3341.4,0.95592162]
[1768769967199,0.92314133,3342.6,3341.4,0.95592162]
[1768769967508,0.92314133,3342.5,3341.4,0.95592162]
[1768769967714,0.92314133,3342.4,3341.4,0.95592162]
[1768769967909,0.92314133,3342.3,3341.4,0.95592162]
[1768769968111,0.92314133,3342.2,3341.4,0.95592162]
[1768769968310,2.71912502,3342.7,3341.4,0.95592162]
[1768769968512,0.92585726,3342.6,3341.4,0.95592162]
[1768769968710,0.92585726,3342.5,3341.4,0.95592162]
[1768769969008,1.10553162,3343.0,3341.4,1.91810001]
[1768769969214,0.92598827,3342.9,3341.6,0.95592162]
[1768769969413,0.92598827,3342.8,3341.6,0.95592162]
[1768769969617,0.92598827,3342.7,3341.6,0.95592162]
[1768769969817,0.92598827,3342.6,3341.6,0.95592162]
[1768769970003,1.10553162,3343.0,3341.6,0.95592162]
[1768769970204,0.92558069,3342.9,3341.6,0.95592162]
[1768769970415,0.92558069,3342.8,3341.6,0.95592162]
[1768769970617,0.92558069,3342.7,3341.6,0.95592162]
[1768769970821,0.92558069,3342.6,3341.6,0.95592162]
[1768769971019,0.95592162,3342.9,3341.6,0.95592162]
[1768769971213,0.92536455,3342.8,3341.6,0.95592162]
[1768769971413,0.92536455,3342.7,3341.6,0.95592162]
[1768769971619,0.92536455,3342.6,3341.6,0.95592162]
[1768769971819,1.10554162,3342.9,3341.6,0.95592162]
[1768769972120,0.92519679,3342.8,3341.6,0.95592162]
[1768769972314,0.92519679,3342.7,3341.6,0.95592162]
[1768769972516,0.92519679,3342.6,3341.6,0.95592162]
[1768769972715,1.10554162,3342.9,3341.6,0.95592162]
[1768769972916,0.92506953,3342.8,3341.6,0.95592162]
[1768769973117,0.92506953,3342.7,3341.6,0.95592162]
[1768769973317,0.92506953,3342.6,3341.6,0.95592162]
[1768769973518,1.10554162,3342.9,3341.6,0.95592162]
[1768769973723,0.92496664,3342.8,3341.6,0.95592162]
[1768769973920,0.92496664,3342.7,3341.6,0.95592162]
[1768769974132,1.10554162,3342.9,3341.6,0.95592162]
[1768769974321,0.92488306,3342.8,3341.6,0.95592162]
[1768769974521,0.92488306,3342.7,3341.6,0.95592162]
[1768769974725,1.10554162,3342.9,3341.6,0.95592162]
[1768769974924,0.9248812,3342.8,3341.6,0.95592162]
[1768769975116,0.9248812,3342.7,3341.6,0.95592162]
[1768769975318,1.10554162,3342.9,3341.6,0.95592162]
[1768769975617,0.9248157,3342.8,3341.6,0.95592162]
[1768769975817,0.9248157,3342.7,3341.6,0.95592162]
[1768769976118,1.10554162,3342.9,3341.6,0.95592162]
[1768769976317,0.92476398,3342.8,3341.6,0.95592162]
[1768769976518,1.10554162,3342.9,3341.6,0.95592162]
[1768769976519,0.92476398,3342.7,3341.6,0.95592162]
[1768769976720,1.10554162,3342.9,3341.6,0.95592162]
[1768769977018,0.92476457,3342.8,3341.6,0.95592162]
[1768769977219,0.92476457,3342.7,3341.6,0.95592162]
[1768769977427,1.10554162,3342.9,3341.6,0.95592162]
[1768769977626,0.9247243,3342.8,3341.6,0.95592162]
[1768769977823,0.9247243,3342.7,3341.6,0.95592162]
[1768769978030,1.10554162,3342.9,3341.6,0.95592162]
[1768769978230,0.92472461,3342.8,3341.6,0.95592162]
[1768769978431,0.92469566,3342.7,3341.6,0.95592162]
[1768769978632,1.10554162,3342.9,3341.6,0.95592162]
[1768769978820,0.92469542,3342.8,3341.6,0.95592162]
[1768769979022,0.92469542,3342.7,3341.6,0.95592162]
[1768769979222,1.10554162,3342.9,3341.6,0.95592162]
[1768769979422,0.92467754,3342.8,3341.6,0.95592162]
[1768769979622,0.92467754,3342.7,3341.6,0.95592162]
[1768769979924,1.10554162,3342.9,3341.6,0.95592162]
[1768769980121,0.92467755,3342.8,3341.6,0.95592162]
[1768769980330,0.92467755,3342.7,3341.6,0.95592162]
[1768769980532,1.10554162,3342.9,3341.6,0.95592162]
[1768769980832,0.92465142,3342.8,3341.6,0.95592162]
[1768769981028,0.92465142,3342.7,3341.6,0.95592162]
[1768769981230,1.10554162,3342.9,3341.6,0.95592162]
[1768769981530,0.92462698,3342.8,3341.6,0.95592162]
[1768769981730,0.92462698,3342.7,3341.6,0.95592162]
[1768769981932,1.10554162,3342.9,3341.6,0.95592162]
[1768769982122,0.92462566,3342.8,3341.6,0.95592162]
[1768769982319,0.92462566,3342.7,3341.6,0.95592162]
[1768769982524,1.10554162,3342.9,3341.6,0.95592162]
[1768769982826,0.92462023,3342.8,3341.6,0.95592162]
[1768769983126,0.92462023,3342.7,3341.6,0.95592162]
[1768769983325,1.10554162,3342.9,3341.6,0.95592162]
[1768769983522,0.92461303,3342.8,3341.6,0.95592162]
[1768769983726,0.92461303,3342.7,3341.6,0.95592162]
[1768769983924,1.10554162,3342.9,3341.6,0.95592162]
[1768769984220,0.92461308,3342.8,3341.6,0.95592162]
[1768769984423,0.92461308,3342.7,3341.6,0.95592162]
[1768769984625,1.10554162,3342.9,3341.6,0.95592162]
[1768769984830,0.92446243,3342.8,3341.6,0.95592162]
[1768769985132,1.10554162,3342.9,3341.6,0.95592162]
[1768769985133,0.92446243,3342.7,3341.6,0.95592162]
[1768769985332,1.10554162,3342.9,3341.6,0.95592162]
[1768769985532,0.92447021,3342.8,3341.6,0.95592162]
[1768769985724,0.92447021,3342.7,3341.6,0.95592162]
[1768769985923,1.10554162,3342.9,3341.6,0.95592162]
[1768769986135,0.92445482,3342.8,3341.6,0.95592162]
[1768769986427,1.10554162,3342.9,3341.6,0.95592162]
[1768769986428,0.92445482,3342.7,3341.6,0.95592162]
[1768769986633,1.10554162,3342.9,3341.6,0.95592162]
[1768769986930,0.92437546,3342.8,3341.6,0.95592162]
[1768769987127,0.92437546,3342.7,3341.6,0.95592162]
[1768769987427,1.10554162,3342.9,3341.6,0.95592162]
[1768769987733,0.92440041,3342.8,3341.6,0.95592162]
[1768769987918,0.92440041,3342.7,3341.6,0.95592162]
[1768769988118,1.10554162,3342.9,3341.6,0.95592162]
[1768769988326,0.92443412,3342.8,3341.6,0.95592162]
[1768769988528,0.92443412,3342.7,3341.6,0.95592162]
[1768769988729,1.10554162,3342.9,3341.6,0.95592162]
[1768769988928,0.92443304,3342.8,3341.6,0.95592162]
[1768769989127,0.92443304,3342.7,3341.6,0.95592162]
[1768769989329,1.10554162,3342.9,3341.6,0.95592162]
[1768769989528,0.92446535,3342.8,3341.6,0.95592162]
[1768769989730,0.92446535,3342.7,3341.6,0.95592162]
[1768769989936,1.10554162,3342.9,3341.6,0.95592162]
[1768769990233,0.92442079,3342.8,3341.6,0.95592162]
[1768769990433,0.92442079,3342.7,3341.6,0.95592162]
[1768769990630,1.10554162,3342.9,3341.6,0.95592162]
[1768769990936,0.92445233,3342.8,3341.6,0.95592162]
[1768769991135,0.92445233,3342.7,3341.6,0.95592162]
[1768769991335,1.10554162,3342.9,3341.6,0.95592162]
[1768769991524,0.92453667,3342.8,3341.6,0.95592162]
[1768769991726,0.92453667,3342.7,3341.6,0.95592162]
[1768769991934,1.10554162,3342.9,3341.6,0.95592162]
[1768769992130,0.92453667,3342.8,3341.6,0.95592162]
[1768769992427,0.92453667,3342.7,3341.6,0.95592162]
[1768769992621,1.10554162,3342.9,3341.6,0.95592162]
[1768769992834,0.92463666,3342.8,3341.6,0.95592162]
[1768769993035,0.92463666,3342.7,3341.6,0.95592162]
[1768769993332,1.10554162,3342.9,3341.6,0.95592162]
[1768769993533,0.92476009,3342.8,3341.6,0.95592162]
[1768769993835,0.92476009,3342.7,3341.6,0.95592162]
[1768769994037,1.10554162,3342.9,3341.6,0.95592162]
[1768769994332,0.92479668,3342.8,3341.6,0.95592162]
[1768769994533,0.92479668,3342.7,3341.6,0.95592162]
[1768769994734,0.92479668,3342.6,3341.6,0.95592162]
[1768769994936,1.10554162,3342.9,3341.6,0.95592162]
[1768769995137,0.92478702,3342.8,3341.6,0.95592162]
[1768769995436,0.92478702,3342.7,3341.6,0.95592162]
[1768769995639,0.92478702,3342.6,3341.6,0.95592162]
[1768769995933,1.10554162,3342.9,3341.6,0.95592162]
[1768769996134,0.92490649,3342.8,3341.6,0.95592162]
[1768769996329,0.92490649,3342.7,3341.6,0.95592162]
[1768769996534,0.92490649,3342.6,3341.6,0.95592162]
[1768769996724,1.10554162,3342.9,3341.6,0.95592162]
[1768769996927,0.92490365,3342.8,3341.6,0.95592162]
[1768769997237,0.92490365,3342.7,3341.6,0.95592162]
[1768769997535,0.92490365,3342.6,3341.6,0.95592162]
[1768769997726,1.10554162,3342.9,3341.6,0.95592162]
[1768769998027,0.92479282,3342.8,3341.6,0.95592162]
[1768769998221,0.92479282,3342.7,3341.6,0.95592162]
[1768769998423,0.92479282,3342.6,3341.6,0.95592162]
[1768769998635,0.92479282,3342.5,3341.6,0.95592162]
[1768769998836,1.10554162,3342.9,3341.6,0.95592162]
[1768769999131,0.92529148,3342.8,3341.6,0.95592162]
[1768769999435,0.92529148,3342.7,3341.6,0.95592162]
[1768769999634,0.92529148,3342.6,3341.6,0.95592162]
[1768769999834,0.92529148,3342.5,3341.6,0.95592162]
[1768770000022,1.10554162,3342.9,3341.6,0.95592162]
[1768770000228,0.92528694,3342.8,3341.6,0.95592162]
[1768770000537,0.92528694,3342.7,3341.6,0.95592162]
[1768770000745,1.88928674,3343.3,3341.0,0.95592162]
[1768770000746,0.92528694,3342.6,3342.0,0.95592162]
[1768770001031,2.03888674,3343.3,3342.0,0.95592162]
[1768770001227,3.97016525,3343.2,3341.8,0.95592162]
[1768770001423,0.92527239,3343.1,3341.8,0.95592162]
[1768770001631,0.92527239,3343.0,3341.8,0.95592162]
[1768770001832,0.92527239,3342.9,3341.7,1.77929407]
[1768770002030,3.04489286,3343.2,3341.8,0.95592162]
[1768770002227,0.92490398,3343.1,3341.8,0.95592162]
[1768770002428,0.92490398,3343.0,3341.8,0.95592162]
[1768770002625,0.92490398,3342.9,3341.8,0.95592162]
[1768770002825,3.04489286,3343.2,3341.8,0.95592162]
[1768770003027,0.92474029,3343.1,3341.8,0.95592162]
[1768770003231,0.92474029,3343.0,3341.7,2.73521569]
[1768770003430,0.92474029,3342.9,3341.7,2.73521569]
[1768770003632,3.04489286,3343.2,3341.7,2.73521569]
[1768770003831,0.92462348,3343.1,3341.7,2.73521569]
[1768770004038,0.92462348,3343.0,3341.7,2.73521569]
[1768770004240,0.92462348,3342.9,3341.7,2.73521569]
[1768770004438,3.04489286,3343.2,3341.7,2.73521569]
[1768770004628,0.92437477,3343.1,3341.7,2.73521569]
[1768770004832,0.92437477,3343.0,3341.7,2.73521569]
[1768770005028,0.92437477,3342.9,3341.7,2.73521569]
[1768770005233,3.04489286,3343.2,3341.7,2.73521569]
[1768770005532,0.92404858,3343.1,3341.7,2.73521569]
[1768770005735,0.92404858,3343.0,3341.7,2.73521569]
[1768770005939,0.92404858,3342.9,3341.7,2.73521569]
[1768770006139,3.04489286,3343.2,3341.7,2.73521569]
[1768770006445,0.92369326,3343.1,3341.7,2.73521569]
[1768770006650,0.92369326,3343.0,3341.7,2.73521569]
[1768770006942,0.92369326,3342.9,3341.7,1.77929407]
[1768770007145,2.08897124,3343.2,3341.7,1.77929407]
[1768770007343,0.923631,3343.1,3341.7,1.77929407]
[1768770007542,0.923631,3343.0,3341.7,1.77929407]
[1768770007739,0.923631,3342.9,3341.7,1.77929407]
[1768770007942,2.08897124,3343.2,3341.7,1.77929407]
[1768770008138,0.92356932,3343.1,3341.7,1.77929407]
[1768770008340,0.92356932,3343.0,3341.7,1.77929407]
[1768770008539,0.92356932,3342.9,3341.7,1.77929407]
[1768770008734,0.14962,3342.8,3341.3,1.77929407]
[1768770008938,2.08902124,3342.3,3341.0,2.993]
[1768770009144,2.08902124,3342.3,3340.5,1.77929407]
[1768770028364,2.00516387,3341.8,3340.2,0.00384299]
[1768770034159,1.85549387,3341.6,3340.2,0.00384299]
[1768770034365,2.00518387,3341.3,3339.3,3.07741311]
[1768770034561,2.00518387,3341.3,3339.4,1.84141311]
[1768770035257,2.00821468,3341.3,3339.4,1.84382611]
[1768770036470,1.85549387,3341.1,3339.4,1.84382611]
[1768770036667,2.00519387,3341.0,3339.4,1.84382611]
[1768770036867,2.00519387,3341.0,3339.4,0.002413]
[1768770037375,1.80969467,3340.8,3339.4,0.002413]
[1768770038667,1.95940467,3340.8,3339.4,0.002413]
[1768770038869,1.80969467,3340.6,3339.4,0.002413]
[1768770045474,1.95941467,3340.6,3339.4,0.002413]
[1768770046371,1.80969467,3340.4,3339.4,0.002413]
[1768770055076,1.80969467,3340.4,3338.7,1.666]
[1768770055276,1.90964606,3340.2,3338.7,1.666]
[1768770055472,0.95544588,3340.3,3338.5,2.31488603]
[1768770055473,1.75990606,3340.0,3338.5,2.31488603]
[1768770055986,1.90963606,3340.5,3338.7,2.75427623]
[1768770056176,1.90963606,3340.5,3339.1,0.95544588]
[1768770056372,1.90961606,3340.8,3339.1,2.75427623]
[1768770056577,0.91648427,3340.7,3339.1,2.75427623]
[1768770056779,1.90961606,3340.8,3339.1,2.75427623]
[1768770056977,0.91648264,3340.7,3339.1,2.75427623]
[1768770057184,0.14972,3340.7,3339.1,2.75427623]
[1768770057374,0.91679348,3340.6,3339.1,2.75427623]
[1768770057583,1.90962606,3340.7,3339.1,2.75427623]
[1768770057780,2.67689082,3340.6,3339.1,2.75427623]
[1768770057986,1.75990606,3340.6,3339.1,2.75427623]
[1768770060290,0.91781912,3340.5,3339.1,2.75427623]
[1768770060489,1.75990606,3340.6,3339.1,2.75427623]
[1768770060691,0.91781998,3340.5,3339.1,2.75427623]
[1768770060877,1.75990606,3340.6,3339.1,2.75427623]
[1768770061079,0.91782313,3340.5,3339.1,2.75427623]
[1768770061296,1.90962606,3340.6,3339.1,2.75427623]
[1768770061491,0.91806806,3340.5,3339.1,2.75427623]
[1768770061784,1.90962606,3340.6,3339.1,2.75427623]
[1768770061986,1.75990606,3340.4,3338.7,2.75427623]
[1768770062489,1.75990606,3340.4,3338.8,1.79883035]
[1768770063381,1.75990606,3340.4,3338.7,0.95544588]
[1768770063382,1.75990606,3340.4,3338.5,0.00342244]
[1768770063688,1.75990606,3340.2,3338.5,0.00342244]
[1768770065779,1.90964606,3340.2,3338.5,0.00342244]
[1768770066391,1.75990606,3340.0,3338.5,0.00342244]
[1768770066984,2.71718204,3340.0,3338.6,0.95727598]
[1768770071995,1.75990606,3339.9,3338.6,0.95727598]
[1768770075801,1.75990606,3339.9,3338.5,0.00342244]
[1768770076001,1.75990606,3339.9,3338.7,0.95727598]